[Event "November 21 Early 2023"]
[Site "https://www.chess.com"]
[Date "2023.11.21"]
[Round "7"]
[White "luckyswitchback"]
[Black "Chigaev, Maksim"]
[Result "1-0"]
[Board "14"]
[TimeControl "180+1"]
[BlackFideId "4108116"]
[WhiteElo "2826"]
[BlackElo "2561"]
[BlackTeam "ESP"]
[WhiteClock "0:00:14"]
[BlackClock "0:00:08"]

1. e4 {[%clk 0:03:00]}  c5 {[%clk 0:02:58]} 2. Nf3 {[%clk 0:03:01]}  d6 {[%clk 0:02:59]} 3. Bb5+ {[%clk 0:02:59]}  Bd7 {[%clk 0:02:52]} 4. Bxd7+ {[%clk 0:02:59]}  Qxd7 {[%clk 0:02:53]} 5. c4 {[%clk 0:02:57]}  e5 {[%clk 0:02:52]} 6. Nc3 {[%clk 0:02:56]}  Nc6 {[%clk 0:02:53]} 7. d3 {[%clk 0:02:56]}  f5 {[%clk 0:02:52]} 8. exf5 {[%clk 0:02:53]}  Nf6 {[%clk 0:02:51]} 9. Bg5 {[%clk 0:02:51]}  Qxf5 {[%clk 0:02:49]} 10. Qe2 {[%clk 0:02:41]}  Be7 {[%clk 0:02:46]} 11. Bxf6 {[%clk 0:02:40]}  gxf6 {[%clk 0:02:45]} 12. Nd5 {[%clk 0:02:35]}  O-O-O {[%clk 0:02:44]} 13. O-O-O {[%clk 0:02:24]}  Rhg8 {[%clk 0:02:36]} 14. g3 {[%clk 0:02:21]}  Qh5 {[%clk 0:02:35]} 15. Rhe1 {[%clk 0:02:18]}  f5 {[%clk 0:02:33]} 16. h4 {[%clk 0:02:01]}  Qf7 {[%clk 0:02:06]} 17. Kb1 {[%clk 0:01:45]}  Kb8 {[%clk 0:02:06]} 18. a3 {[%clk 0:01:30]}  Bf6 {[%clk 0:01:58]} 19. Ne3 {[%clk 0:01:21]}  e4 {[%clk 0:01:37]} 20. dxe4 {[%clk 0:01:15]}  fxe4 {[%clk 0:01:38]} 21. Nd2 {[%clk 0:01:08]}  Rge8 {[%clk 0:01:08]} 22. Nd5 {[%clk 0:01:06]}  Nd4 {[%clk 0:00:58]} 23. Qg4 {[%clk 0:01:04]}  Bh8 {[%clk 0:00:32]} 24. Rxe4 {[%clk 0:00:46]}  Rg8 {[%clk 0:00:22]} 25. Qf4 {[%clk 0:00:41]}  Qg6 {[%clk 0:00:22]} 26. Ne7 {[%clk 0:00:36]}  Qh5 {[%clk 0:00:22]} 27. g4 {[%clk 0:00:32]}  Qxh4 {[%clk 0:00:16]} 28. Nxg8 {[%clk 0:00:31]}  Rxg8 {[%clk 0:00:16]} 29. Qxd6+ {[%clk 0:00:31]}  Ka8 {[%clk 0:00:17]} 30. Qxc5 {[%clk 0:00:24]}  Nc6 {[%clk 0:00:17]} 31. Rde1 {[%clk 0:00:19]}  Qd8 {[%clk 0:00:17]} 32. Nb3 {[%clk 0:00:18]}  a6 {[%clk 0:00:18]} 33. Qd5 {[%clk 0:00:17]}  Qf6 {[%clk 0:00:10]} 34. Qxg8+ {[%clk 0:00:17]}  Ka7 {[%clk 0:00:08]} 35. R1e2 {[%clk 0:00:14]} 1-0

[Event "November 21 Early 2023"]
[Site "https://www.chess.com"]
[Date "2023.11.21"]
[Round "7"]
[White "Al-Tarboush, Ward"]
[Black "Shimanov, Aleksandr"]
[Result "0-1"]
[Board "18"]
[TimeControl "180+1"]
[WhiteFideId "7601450"]
[BlackFideId "4198603"]
[WhiteElo "2280"]
[BlackElo "2611"]
[WhiteTeam "NOR"]
[BlackTeam "RUS"]
[WhiteClock "0:00:02"]
[BlackClock "0:00:09"]

1. e4 {[%clk 0:03:00]}  e6 {[%clk 0:02:56]} 2. d4 {[%clk 0:03:00]}  d5 {[%clk 0:02:55]} 3. exd5 {[%clk 0:03:01]}  exd5 {[%clk 0:02:54]} 4. Bd3 {[%clk 0:03:01]}  Nc6 {[%clk 0:02:39]} 5. Nf3 {[%clk 0:03:00]}  Bg4 {[%clk 0:02:33]} 6. c3 {[%clk 0:03:00]}  Qd7 {[%clk 0:02:30]} 7. O-O {[%clk 0:03:00]}  Bd6 {[%clk 0:02:28]} 8. Re1+ {[%clk 0:02:59]}  Nge7 {[%clk 0:02:28]} 9. Nbd2 {[%clk 0:02:59]}  O-O {[%clk 0:02:14]} 10. Nf1 {[%clk 0:02:52]}  Rae8 {[%clk 0:02:08]} 11. Ne3 {[%clk 0:02:45]}  Bh5 {[%clk 0:01:45]} 12. h3 {[%clk 0:02:45]}  Kh8 {[%clk 0:01:40]} 13. Bd2 {[%clk 0:02:41]}  f5 {[%clk 0:01:34]} 14. Bc2 {[%clk 0:02:20]}  f4 {[%clk 0:01:23]} 15. Nf1 {[%clk 0:02:19]}  Ng6 {[%clk 0:01:21]} 16. N1h2 {[%clk 0:02:10]}  Nh4 {[%clk 0:01:00]} 17. Bb1 {[%clk 0:01:32]}  g5 {[%clk 0:00:43]} 18. Bc2 {[%clk 0:01:27]}  Rxe1+ {[%clk 0:00:35]} 19. Bxe1 {[%clk 0:01:27]}  Re8 {[%clk 0:00:31]} 20. Bd2 {[%clk 0:01:24]}  Nd8 {[%clk 0:00:25]} 21. Ng4 {[%clk 0:01:19]}  Bxg4 {[%clk 0:00:23]} 22. hxg4 {[%clk 0:01:18]}  Qxg4 {[%clk 0:00:21]} 23. Nxh4 {[%clk 0:01:10]}  Qxh4 {[%clk 0:00:22]} 24. Qf3 {[%clk 0:01:09]}  g4 {[%clk 0:00:16]} 25. g3 {[%clk 0:00:22]}  fxg3 {[%clk 0:00:04]} 26. fxg3 {[%clk 0:00:23]}  gxf3 {[%clk 0:00:03]} 27. gxh4 {[%clk 0:00:23]}  Re2 {[%clk 0:00:04]} 28. Rd1 {[%clk 0:00:19]}  Bg3 {[%clk 0:00:03]} 29. Bf5 {[%clk 0:00:06]}  Rg2+ {[%clk 0:00:03]} 30. Kf1 {[%clk 0:00:07]}  Rh2 {[%clk 0:00:04]} 31. Be3 {[%clk 0:00:07]}  Rh1+ {[%clk 0:00:03]} 32. Bg1 {[%clk 0:00:07]}  f2 {[%clk 0:00:04]} 33. Kg2 {[%clk 0:00:07]}  Rxg1+ {[%clk 0:00:05]} 34. Rxg1 {[%clk 0:00:08]}  fxg1=Q+ {[%clk 0:00:05]} 35. Kxg1 {[%clk 0:00:09]}  Bxh4 {[%clk 0:00:06]} 36. Kg2 {[%clk 0:00:09]}  Be7 {[%clk 0:00:06]} 37. Bd7 {[%clk 0:00:09]}  Kg7 {[%clk 0:00:06]} 38. Kf3 {[%clk 0:00:09]}  h5 {[%clk 0:00:06]} 39. Kf4 {[%clk 0:00:09]}  Kf6 {[%clk 0:00:06]} 40. Bh3 {[%clk 0:00:08]}  Bd6+ {[%clk 0:00:07]} 41. Kf3 {[%clk 0:00:08]}  Kg5 {[%clk 0:00:08]} 42. Bc8 {[%clk 0:00:08]}  h4 {[%clk 0:00:07]} 43. b4 {[%clk 0:00:08]}  b6 {[%clk 0:00:07]} 44. a4 {[%clk 0:00:08]}  c5 {[%clk 0:00:07]} 45. bxc5 {[%clk 0:00:07]}  bxc5 {[%clk 0:00:08]} 46. a5 {[%clk 0:00:07]}  cxd4 {[%clk 0:00:08]} 47. cxd4 {[%clk 0:00:07]}  Nc6 {[%clk 0:00:09]} 48. a6 {[%clk 0:00:05]}  Nxd4+ {[%clk 0:00:09]} 49. Ke3 {[%clk 0:00:05]}  Nf5+ {[%clk 0:00:09]} 50. Kd3 {[%clk 0:00:04]}  h3 {[%clk 0:00:10]} 51. Bb7 {[%clk 0:00:02]}  Ne7 {[%clk 0:00:09]} 0-1

[Event "November 21 Early 2023"]
[Site "https://www.chess.com"]
[Date "2023.11.21"]
[Round "7"]
[White "Puranik, Abhimanyu"]
[Black "Hilary46"]
[Result "1-0"]
[Board "19"]
[TimeControl "180+1"]
[WhiteFideId "5061245"]
[WhiteElo "2493"]
[BlackElo "2640"]
[WhiteTeam "IND"]
[WhiteClock "0:00:05"]
[BlackClock "0:00:02"]

1. b3 {[%clk 0:03:00]}  e5 {[%clk 0:02:59]} 2. Bb2 {[%clk 0:03:00]}  Nc6 {[%clk 0:03:00]} 3. e3 {[%clk 0:03:01]}  d5 {[%clk 0:03:00]} 4. Bb5 {[%clk 0:03:01]}  Bd6 {[%clk 0:03:01]} 5. f4 {[%clk 0:02:54]}  f6 {[%clk 0:03:01]} 6. Ne2 {[%clk 0:02:47]}  Ne7 {[%clk 0:02:48]} 7. O-O {[%clk 0:02:47]}  O-O {[%clk 0:02:46]} 8. Ng3 {[%clk 0:02:47]}  a6 {[%clk 0:02:43]} 9. Be2 {[%clk 0:02:46]}  exf4 {[%clk 0:02:35]} 10. exf4 {[%clk 0:02:46]}  Nf5 {[%clk 0:02:35]} 11. Nxf5 {[%clk 0:02:42]}  Bxf5 {[%clk 0:02:36]} 12. Nc3 {[%clk 0:02:32]}  d4 {[%clk 0:02:34]} 13. Bc4+ {[%clk 0:02:28]}  Kh8 {[%clk 0:02:33]} 14. Ne2 {[%clk 0:02:28]}  Bc5 {[%clk 0:02:32]} 15. Kh1 {[%clk 0:02:16]}  Qd7 {[%clk 0:02:12]} 16. Ng3 {[%clk 0:02:16]}  Bg4 {[%clk 0:02:06]} 17. Be2 {[%clk 0:02:15]}  Bxe2 {[%clk 0:02:06]} 18. Qxe2 {[%clk 0:02:16]}  d3 {[%clk 0:02:04]} 19. cxd3 {[%clk 0:02:16]}  Rfe8 {[%clk 0:02:02]} 20. Qf3 {[%clk 0:02:13]}  Rad8 {[%clk 0:02:02]} 21. Rac1 {[%clk 0:02:11]}  Bb4 {[%clk 0:01:54]} 22. Nh5 {[%clk 0:02:06]}  Qxd3 {[%clk 0:01:46]} 23. Nxf6 {[%clk 0:01:22]}  Qxf3 {[%clk 0:01:41]} 24. Rxf3 {[%clk 0:01:22]}  gxf6 {[%clk 0:01:41]} 25. Bxf6+ {[%clk 0:01:21]}  Kg8 {[%clk 0:01:41]} 26. Bxd8 {[%clk 0:01:20]}  Rxd8 {[%clk 0:01:42]} 27. d3 {[%clk 0:01:20]}  Kf7 {[%clk 0:01:41]} 28. h3 {[%clk 0:01:16]}  Bd6 {[%clk 0:01:35]} 29. Re3 {[%clk 0:01:13]}  Nb4 {[%clk 0:01:26]} 30. a4 {[%clk 0:01:09]}  Nd5 {[%clk 0:01:22]} 31. Re4 {[%clk 0:01:10]}  Nf6 {[%clk 0:01:19]} 32. Rec4 {[%clk 0:01:06]}  Re8 {[%clk 0:01:18]} 33. Kg1 {[%clk 0:00:57]}  Re2 {[%clk 0:01:18]} 34. Rxc7+ {[%clk 0:00:37]}  Bxc7 {[%clk 0:01:17]} 35. Rxc7+ {[%clk 0:00:37]}  Re7 {[%clk 0:01:17]} 36. Rc4 {[%clk 0:00:37]}  Rd7 {[%clk 0:00:59]} 37. d4 {[%clk 0:00:37]}  Nd5 {[%clk 0:00:56]} 38. g3 {[%clk 0:00:35]}  Ne3 {[%clk 0:00:54]} 39. Rc5 {[%clk 0:00:32]}  Kf6 {[%clk 0:00:45]} 40. Kf2 {[%clk 0:00:31]}  Nf5 {[%clk 0:00:45]} 41. d5 {[%clk 0:00:25]}  Ne7 {[%clk 0:00:44]} 42. g4 {[%clk 0:00:23]}  Nxd5 {[%clk 0:00:44]} 43. Kf3 {[%clk 0:00:23]}  Ke6 {[%clk 0:00:42]} 44. a5 {[%clk 0:00:20]}  Kd6 {[%clk 0:00:41]} 45. Rc4 {[%clk 0:00:18]}  Re7 {[%clk 0:00:40]} 46. Re4 {[%clk 0:00:19]}  Rc7 {[%clk 0:00:36]} 47. Rd4 {[%clk 0:00:19]}  Rc3+ {[%clk 0:00:35]} 48. Ke4 {[%clk 0:00:20]}  Re3+ {[%clk 0:00:35]} 49. Kf5 {[%clk 0:00:20]}  Rxh3 {[%clk 0:00:33]} 50. b4 {[%clk 0:00:20]}  Rb3 {[%clk 0:00:32]} 51. Ke4 {[%clk 0:00:18]}  Re3+ {[%clk 0:00:32]} 52. Kf5 {[%clk 0:00:18]}  Kc6 {[%clk 0:00:24]} 53. g5 {[%clk 0:00:17]}  Rb3 {[%clk 0:00:21]} 54. Ke6 {[%clk 0:00:09]}  Nxb4 {[%clk 0:00:19]} 55. f5 {[%clk 0:00:08]}  Re3+ {[%clk 0:00:20]} 56. Kf7 {[%clk 0:00:08]}  Nd5 {[%clk 0:00:19]} 57. f6 {[%clk 0:00:05]}  Re5 {[%clk 0:00:16]} 58. Rg4 {[%clk 0:00:04]}  Rf5 {[%clk 0:00:08]} 59. Kg7 {[%clk 0:00:04]}  Kd6 {[%clk 0:00:04]} 60. f7 {[%clk 0:00:05]}  Kd7 {[%clk 0:00:02]} 61. f8=Q {[%clk 0:00:04]}  Rxf8 {[%clk 0:00:02]} 62. Kxf8 {[%clk 0:00:05]}  b6 {[%clk 0:00:02]} 63. axb6 {[%clk 0:00:04]}  Nxb6 {[%clk 0:00:03]} 64. Kg7 {[%clk 0:00:04]}  a5 {[%clk 0:00:02]} 65. Kxh7 {[%clk 0:00:05]}  a4 {[%clk 0:00:03]} 66. g6 {[%clk 0:00:05]}  a3 {[%clk 0:00:02]} 67. g7 {[%clk 0:00:05]} 1-0

[Event "November 21 Early 2023"]
[Site "https://www.chess.com"]
[Date "2023.11.21"]
[Round "7"]
[White "Maksimovic, Bojan"]
[Black "Khismatullin, Denis"]
[Result "1-0"]
[Board "23"]
[TimeControl "180+1"]
[WhiteFideId "14408120"]
[BlackFideId "4142578"]
[WhiteElo "2546"]
[BlackElo "2552"]
[WhiteTeam "BIH"]
[BlackTeam "RUS"]
[WhiteClock "0:00:04"]
[BlackClock "0:00:00"]

1. a3 {[%clk 0:03:00]}  e5 {[%clk 0:02:57]} 2. e4 {[%clk 0:03:01]}  Nf6 {[%clk 0:02:57]} 3. Nc3 {[%clk 0:02:59]}  d5 {[%clk 0:02:57]} 4. exd5 {[%clk 0:02:59]}  Nxd5 {[%clk 0:02:58]} 5. Qh5 {[%clk 0:02:59]}  Nc6 {[%clk 0:02:50]} 6. Bb5 {[%clk 0:02:59]}  Nf6 {[%clk 0:02:31]} 7. Qxe5+ {[%clk 0:02:57]}  Be7 {[%clk 0:02:32]} 8. Nf3 {[%clk 0:02:34]}  O-O {[%clk 0:02:32]} 9. Bxc6 {[%clk 0:02:34]}  bxc6 {[%clk 0:02:31]} 10. O-O {[%clk 0:02:32]}  Re8 {[%clk 0:02:32]} 11. d3 {[%clk 0:02:15]}  Bxa3 {[%clk 0:02:25]} 12. Qg3 {[%clk 0:02:07]}  Bd6 {[%clk 0:02:25]} 13. Qh4 {[%clk 0:02:07]}  h6 {[%clk 0:02:22]} 14. h3 {[%clk 0:02:03]}  Bb7 {[%clk 0:02:16]} 15. Re1 {[%clk 0:01:53]}  c5 {[%clk 0:02:14]} 16. Rxe8+ {[%clk 0:01:50]}  Qxe8 {[%clk 0:02:09]} 17. Bxh6 {[%clk 0:01:27]}  Bxf3 {[%clk 0:02:08]} 18. gxf3 {[%clk 0:01:28]}  Qe5 {[%clk 0:02:07]} 19. f4 {[%clk 0:01:25]}  Qf5 {[%clk 0:01:57]} 20. Bg5 {[%clk 0:01:21]}  Nh7 {[%clk 0:01:57]} 21. Qg4 {[%clk 0:01:20]}  Qxg4+ {[%clk 0:01:41]} 22. hxg4 {[%clk 0:01:21]}  f6 {[%clk 0:01:35]} 23. Bh4 {[%clk 0:01:19]}  Bxf4 {[%clk 0:01:36]} 24. Ne4 {[%clk 0:01:14]}  c4 {[%clk 0:01:18]} 25. dxc4 {[%clk 0:01:12]}  Nf8 {[%clk 0:01:17]} 26. Rd1 {[%clk 0:01:04]}  a5 {[%clk 0:01:14]} 27. Bg3 {[%clk 0:00:49]}  Ne6 {[%clk 0:01:13]} 28. Ra1 {[%clk 0:00:46]}  Bxg3 {[%clk 0:01:02]} 29. fxg3 {[%clk 0:00:46]}  Rd8 {[%clk 0:00:57]} 30. Rxa5 {[%clk 0:00:38]}  Rd4 {[%clk 0:00:55]} 31. Nf2 {[%clk 0:00:36]}  Rd2 {[%clk 0:00:54]} 32. b4 {[%clk 0:00:21]}  Rxc2 {[%clk 0:00:53]} 33. c5 {[%clk 0:00:22]}  Rc4 {[%clk 0:00:49]} 34. Rb5 {[%clk 0:00:21]}  Kf7 {[%clk 0:00:48]} 35. Rb8 {[%clk 0:00:21]}  Kg6 {[%clk 0:00:47]} 36. Kg2 {[%clk 0:00:21]}  Rc2 {[%clk 0:00:46]} 37. Kf3 {[%clk 0:00:22]}  Ng5+ {[%clk 0:00:44]} 38. Ke3 {[%clk 0:00:22]}  Rc3+ {[%clk 0:00:44]} 39. Ke2 {[%clk 0:00:22]}  Rxg3 {[%clk 0:00:41]} 40. Rb7 {[%clk 0:00:22]}  Ne6 {[%clk 0:00:39]} 41. c6 {[%clk 0:00:16]}  Nd4+ {[%clk 0:00:38]} 42. Kf1 {[%clk 0:00:13]}  Nxc6 {[%clk 0:00:37]} 43. b5 {[%clk 0:00:09]}  Ne5 {[%clk 0:00:37]} 44. Rxc7 {[%clk 0:00:09]}  Nxg4 {[%clk 0:00:37]} 45. Ne4 {[%clk 0:00:10]}  Rf3+ {[%clk 0:00:33]} 46. Kg2 {[%clk 0:00:10]}  Rb3 {[%clk 0:00:32]} 47. Nd6 {[%clk 0:00:11]}  Ne3+ {[%clk 0:00:31]} 48. Kf2 {[%clk 0:00:10]}  Nd5 {[%clk 0:00:31]} 49. Rd7 {[%clk 0:00:09]}  Nf4 {[%clk 0:00:30]} 50. Ne8 {[%clk 0:00:09]}  Nh5 {[%clk 0:00:27]} 51. Nd6 {[%clk 0:00:08]}  Kg5 {[%clk 0:00:23]} 52. Rb7 {[%clk 0:00:08]}  Kf4 {[%clk 0:00:22]} 53. b6 {[%clk 0:00:07]}  g5 {[%clk 0:00:20]} 54. Rb8 {[%clk 0:00:05]}  Rb2+ {[%clk 0:00:18]} 55. Ke1 {[%clk 0:00:06]}  g4 {[%clk 0:00:17]} 56. b7 {[%clk 0:00:06]}  g3 {[%clk 0:00:06]} 57. Rg8 {[%clk 0:00:06]}  Rb1+ {[%clk 0:00:04]} 58. Ke2 {[%clk 0:00:05]}  Rb2+ {[%clk 0:00:04]} 59. Ke1 {[%clk 0:00:06]}  Kf3 {[%clk 0:00:03]} 60. b8=Q {[%clk 0:00:02]}  Rxb8 {[%clk 0:00:04]} 61. Rxb8 {[%clk 0:00:03]}  Nf4 {[%clk 0:00:03]} 62. Rb3+ {[%clk 0:00:04]}  Kg4 {[%clk 0:00:03]} 63. Ne4 {[%clk 0:00:04]}  Ng2+ {[%clk 0:00:01]} 64. Kf1 {[%clk 0:00:04]}  Nh4 {[%clk 0:00:00]} 65. Nxg3 {[%clk 0:00:04]} 1-0

[Event "November 21 Early 2023"]
[Site "https://www.chess.com"]
[Date "2023.11.21"]
[Round "7"]
[White "Baskakov, Egor"]
[Black "Djordjevic, Vuk"]
[Result "1-0"]
[Board "25"]
[TimeControl "180+1"]
[WhiteFideId "24197866"]
[BlackFideId "902098"]
[WhiteElo "2225"]
[BlackElo "2425"]
[WhiteTeam "RUS"]
[BlackTeam "SRB"]
[WhiteClock "0:00:46"]
[BlackClock "0:00:02"]

1. e4 {[%clk 0:03:00]}  e6 {[%clk 0:02:59]} 2. Nc3 {[%clk 0:03:00]}  d5 {[%clk 0:02:59]} 3. g3 {[%clk 0:03:00]}  Nf6 {[%clk 0:02:59]} 4. Bg2 {[%clk 0:03:00]}  d4 {[%clk 0:02:58]} 5. Nce2 {[%clk 0:03:00]}  c5 {[%clk 0:02:58]} 6. d3 {[%clk 0:03:00]}  Nc6 {[%clk 0:02:57]} 7. h3 {[%clk 0:03:01]}  g6 {[%clk 0:02:56]} 8. f4 {[%clk 0:03:02]}  Bg7 {[%clk 0:02:56]} 9. Nf3 {[%clk 0:03:02]}  O-O {[%clk 0:02:56]} 10. O-O {[%clk 0:03:03]}  b5 {[%clk 0:02:56]} 11. g4 {[%clk 0:03:01]}  Bb7 {[%clk 0:02:51]} 12. Ng3 {[%clk 0:03:01]}  Qb6 {[%clk 0:02:42]} 13. f5 {[%clk 0:02:59]}  exf5 {[%clk 0:02:39]} 14. gxf5 {[%clk 0:02:53]}  Rae8 {[%clk 0:02:28]} 15. Bf4 {[%clk 0:02:52]}  Kh8 {[%clk 0:02:18]} 16. Qd2 {[%clk 0:02:50]}  c4 {[%clk 0:02:15]} 17. Kh1 {[%clk 0:02:44]}  Nd7 {[%clk 0:02:10]} 18. Bh6 {[%clk 0:02:41]}  Nce5 {[%clk 0:02:06]} 19. Nxe5 {[%clk 0:02:27]}  Nxe5 {[%clk 0:02:01]} 20. Rad1 {[%clk 0:02:06]}  cxd3 {[%clk 0:01:51]} 21. cxd3 {[%clk 0:02:07]}  Bxh6 {[%clk 0:01:15]} 22. Qxh6 {[%clk 0:02:05]}  gxf5 {[%clk 0:01:15]} 23. Qh4 {[%clk 0:01:45]}  Ng6 {[%clk 0:01:09]} 24. Qh5 {[%clk 0:01:40]}  fxe4 {[%clk 0:00:38]} 25. Nxe4 {[%clk 0:01:36]}  Bxe4 {[%clk 0:00:33]} 26. Bxe4 {[%clk 0:01:33]}  Kg7 {[%clk 0:00:29]} 27. Rf5 {[%clk 0:01:26]}  b4 {[%clk 0:00:18]} 28. Rdf1 {[%clk 0:01:23]}  Re7 {[%clk 0:00:17]} 29. Qg5 {[%clk 0:01:19]}  Qd8 {[%clk 0:00:15]} 30. Qf6+ {[%clk 0:01:14]}  Kg8 {[%clk 0:00:15]} 31. Rh5 {[%clk 0:01:03]}  Rxe4 {[%clk 0:00:09]} 32. dxe4 {[%clk 0:01:01]}  Qe8 {[%clk 0:00:05]} 33. e5 {[%clk 0:00:53]}  Qe7 {[%clk 0:00:05]} 34. Rg5 {[%clk 0:00:49]}  Qxf6 {[%clk 0:00:04]} 35. exf6 {[%clk 0:00:50]}  Rd8 {[%clk 0:00:04]} 36. h4 {[%clk 0:00:50]}  Kf8 {[%clk 0:00:04]} 37. h5 {[%clk 0:00:48]}  Nh8 {[%clk 0:00:02]} 38. Rfg1 {[%clk 0:00:46]}  Ke8 {[%clk 0:00:02]} 39. Rg8+ {[%clk 0:00:46]} 1-0

[Event "November 21 Early 2023"]
[Site "https://www.chess.com"]
[Date "2023.11.21"]
[Round "7"]
[White "Javakhadze, Zurab"]
[Black "Aradhya, Garg"]
[Result "1-0"]
[Board "27"]
[TimeControl "180+1"]
[WhiteFideId "13603647"]
[BlackFideId "25006746"]
[WhiteElo "2381"]
[BlackElo "2323"]
[WhiteTeam "GEO"]
[BlackTeam "IND"]
[WhiteClock "0:00:03"]
[BlackClock "0:00:15"]

1. Nf3 {[%clk 0:03:00]}  Nf6 {[%clk 0:02:56]} 2. g3 {[%clk 0:02:59]}  g6 {[%clk 0:02:56]} 3. Bg2 {[%clk 0:03:00]}  Bg7 {[%clk 0:02:56]} 4. O-O {[%clk 0:03:00]}  O-O {[%clk 0:02:57]} 5. d4 {[%clk 0:03:01]}  d5 {[%clk 0:02:57]} 6. c4 {[%clk 0:03:01]}  c6 {[%clk 0:02:57]} 7. a4 {[%clk 0:03:01]}  a5 {[%clk 0:02:56]} 8. Nc3 {[%clk 0:02:59]}  dxc4 {[%clk 0:02:56]} 9. e4 {[%clk 0:02:43]}  Bg4 {[%clk 0:02:54]} 10. h3 {[%clk 0:02:34]}  Bxf3 {[%clk 0:02:53]} 11. Bxf3 {[%clk 0:02:35]}  Nfd7 {[%clk 0:02:48]} 12. Be3 {[%clk 0:02:34]}  e5 {[%clk 0:02:46]} 13. d5 {[%clk 0:02:27]}  Nb6 {[%clk 0:02:46]} 14. dxc6 {[%clk 0:02:22]}  Qc7 {[%clk 0:02:41]} 15. cxb7 {[%clk 0:02:11]}  Qxb7 {[%clk 0:02:42]} 16. Nb5 {[%clk 0:02:07]}  Nc6 {[%clk 0:02:31]} 17. Be2 {[%clk 0:01:06]}  Nd4 {[%clk 0:02:25]} 18. Rc1 {[%clk 0:00:52]}  Rfd8 {[%clk 0:01:42]} 19. Bxd4 {[%clk 0:00:51]}  exd4 {[%clk 0:01:42]} 20. Bxc4 {[%clk 0:00:50]}  Qxe4 {[%clk 0:01:41]} 21. Bd3 {[%clk 0:00:44]}  Qe7 {[%clk 0:01:30]} 22. Rc7 {[%clk 0:00:34]}  Rd7 {[%clk 0:01:30]} 23. Rxd7 {[%clk 0:00:20]}  Qxd7 {[%clk 0:01:29]} 24. Qf3 {[%clk 0:00:20]}  Re8 {[%clk 0:01:22]} 25. b3 {[%clk 0:00:19]}  h5 {[%clk 0:01:20]} 26. h4 {[%clk 0:00:18]}  Rc8 {[%clk 0:01:10]} 27. Re1 {[%clk 0:00:16]}  Nd5 {[%clk 0:01:06]} 28. Bc4 {[%clk 0:00:16]}  Nb4 {[%clk 0:01:06]} 29. Bxf7+ {[%clk 0:00:11]}  Kh7 {[%clk 0:00:51]} 30. Re6 {[%clk 0:00:11]}  Rf8 {[%clk 0:00:34]} 31. Bxg6+ {[%clk 0:00:08]}  Kg8 {[%clk 0:00:35]} 32. Qxh5 {[%clk 0:00:07]}  Bf6 {[%clk 0:00:35]} 33. Rd6 {[%clk 0:00:06]}  Qg7 {[%clk 0:00:34]} 34. Bf5 {[%clk 0:00:04]}  Rb8 {[%clk 0:00:21]} 35. Rd7 {[%clk 0:00:02]}  Qxd7 {[%clk 0:00:17]} 36. Bxd7 {[%clk 0:00:02]}  d3 {[%clk 0:00:18]} 37. Be6+ {[%clk 0:00:02]}  Kg7 {[%clk 0:00:17]} 38. Qf7+ {[%clk 0:00:03]}  Kh6 {[%clk 0:00:18]} 39. Qxf6+ {[%clk 0:00:04]}  Kh7 {[%clk 0:00:18]} 40. Bf5+ {[%clk 0:00:04]}  Kg8 {[%clk 0:00:15]} 41. Qg6+ {[%clk 0:00:03]} 1-0

[Event "November 21 Early 2023"]
[Site "https://www.chess.com"]
[Date "2023.11.21"]
[Round "7"]
[White "Piesik, Piotr"]
[Black "BardArtem"]
[Result "1-0"]
[Board "28"]
[TimeControl "180+1"]
[WhiteFideId "1136194"]
[WhiteElo "2309"]
[BlackElo "2854"]
[WhiteTeam "CZE"]
[WhiteClock "0:00:51"]
[BlackClock "0:00:02"]

1. Nf3 {[%clk 0:02:56]}  d5 {[%clk 0:02:55]} 2. g3 {[%clk 0:02:52]}  Nf6 {[%clk 0:02:52]} 3. Bg2 {[%clk 0:02:52]}  c6 {[%clk 0:02:50]} 4. O-O {[%clk 0:02:52]}  Bf5 {[%clk 0:02:50]} 5. d3 {[%clk 0:02:53]}  h6 {[%clk 0:02:50]} 6. Nbd2 {[%clk 0:02:53]}  e6 {[%clk 0:02:50]} 7. Qe1 {[%clk 0:02:54]}  Be7 {[%clk 0:02:50]} 8. e4 {[%clk 0:02:54]}  Bh7 {[%clk 0:02:51]} 9. Qe2 {[%clk 0:02:54]}  O-O {[%clk 0:02:51]} 10. b3 {[%clk 0:02:55]}  a5 {[%clk 0:02:51]} 11. a4 {[%clk 0:02:55]}  Na6 {[%clk 0:02:52]} 12. Bb2 {[%clk 0:02:56]}  Re8 {[%clk 0:02:48]} 13. Kh1 {[%clk 0:02:48]}  Qb6 {[%clk 0:02:43]} 14. Ne1 {[%clk 0:02:44]}  Nb4 {[%clk 0:02:40]} 15. f4 {[%clk 0:02:37]}  dxe4 {[%clk 0:02:32]} 16. dxe4 {[%clk 0:02:35]}  Qa6 {[%clk 0:02:32]} 17. Qxa6 {[%clk 0:02:33]}  Nxa6 {[%clk 0:02:29]} 18. Nc4 {[%clk 0:02:32]}  Nc5 {[%clk 0:01:59]} 19. e5 {[%clk 0:02:21]}  Nd5 {[%clk 0:02:00]} 20. Bd4 {[%clk 0:02:19]}  Red8 {[%clk 0:01:54]} 21. Bxd5 {[%clk 0:02:06]}  Rxd5 {[%clk 0:01:07]} 22. Be3 {[%clk 0:02:05]}  Rad8 {[%clk 0:01:01]} 23. Nxa5 {[%clk 0:02:01]}  Be4+ {[%clk 0:00:34]} 24. Kg1 {[%clk 0:02:00]}  R5d7 {[%clk 0:00:20]} 25. b4 {[%clk 0:01:34]}  Na6 {[%clk 0:00:20]} 26. c3 {[%clk 0:01:35]}  c5 {[%clk 0:00:17]} 27. b5 {[%clk 0:01:32]}  Nc7 {[%clk 0:00:17]} 28. Nxb7 {[%clk 0:01:30]}  Bxb7 {[%clk 0:00:17]} 29. c4 {[%clk 0:01:27]}  Ra8 {[%clk 0:00:13]} 30. a5 {[%clk 0:01:25]}  Nxb5 {[%clk 0:00:13]} 31. cxb5 {[%clk 0:01:24]}  c4 {[%clk 0:00:12]} 32. Nc2 {[%clk 0:01:16]}  Be4 {[%clk 0:00:10]} 33. Rfc1 {[%clk 0:01:15]}  c3 {[%clk 0:00:08]} 34. a6 {[%clk 0:01:06]}  Bd3 {[%clk 0:00:06]} 35. Nd4 {[%clk 0:00:54]}  Bc5 {[%clk 0:00:05]} 36. Rxc3 {[%clk 0:00:54]}  Bxd4 {[%clk 0:00:01]} 37. Rxd3 {[%clk 0:00:54]}  Bxe3+ {[%clk 0:00:02]} 38. Rxe3 {[%clk 0:00:54]}  Rd2 {[%clk 0:00:01]} 39. a7 {[%clk 0:00:52]}  Rf8 {[%clk 0:00:01]} 40. a8=Q {[%clk 0:00:52]}  Rd1+ {[%clk 0:00:02]} 41. Rxd1 {[%clk 0:00:51]} 1-0

[Event "November 21 Early 2023"]
[Site "https://www.chess.com"]
[Date "2023.11.21"]
[Round "7"]
[White "Martinez Alcantara, Jose Eduardo"]
[Black "Mohammad Fahad, Rahman"]
[Result "1-0"]
[Board "30"]
[TimeControl "180+1"]
[WhiteFideId "3805662"]
[BlackFideId "10207791"]
[WhiteElo "2703"]
[BlackElo "2339"]
[WhiteTeam "PER"]
[BlackTeam "BAN"]
[WhiteClock "0:02:06"]
[BlackClock "0:01:41"]

1. e4 {[%clk 0:03:00]}  e5 {[%clk 0:02:55]} 2. d4 {[%clk 0:02:59]}  exd4 {[%clk 0:02:55]} 3. Qxd4 {[%clk 0:03:00]}  Nc6 {[%clk 0:02:55]} 4. Qe3 {[%clk 0:03:01]}  Nf6 {[%clk 0:02:55]} 5. Bd2 {[%clk 0:03:02]}  Bb4 {[%clk 0:02:48]} 6. a3 {[%clk 0:03:02]}  Bxd2+ {[%clk 0:02:46]} 7. Nxd2 {[%clk 0:03:02]}  O-O {[%clk 0:02:47]} 8. O-O-O {[%clk 0:03:03]}  d5 {[%clk 0:02:47]} 9. f4 {[%clk 0:02:59]}  Bg4 {[%clk 0:02:41]} 10. Ngf3 {[%clk 0:02:55]}  Qe7 {[%clk 0:02:25]} 11. e5 {[%clk 0:02:53]}  d4 {[%clk 0:02:25]} 12. Qb3 {[%clk 0:02:39]}  Nh5 {[%clk 0:02:22]} 13. g3 {[%clk 0:02:39]}  Rfd8 {[%clk 0:02:06]} 14. Bd3 {[%clk 0:02:31]}  g6 {[%clk 0:01:58]} 15. Be4 {[%clk 0:02:27]}  Na5 {[%clk 0:01:56]} 16. Qb4 {[%clk 0:02:13]}  Qxb4 {[%clk 0:01:56]} 17. axb4 {[%clk 0:02:14]}  Nc6 {[%clk 0:01:56]} 18. b5 {[%clk 0:02:14]}  Na5 {[%clk 0:01:55]} 19. b4 {[%clk 0:02:14]}  f5 {[%clk 0:01:49]} 20. Bd3 {[%clk 0:02:08]}  a6 {[%clk 0:01:45]} 21. bxa5 {[%clk 0:02:06]}  axb5 {[%clk 0:01:46]} 22. Kb2 {[%clk 0:02:06]}  Rxa5 {[%clk 0:01:45]} 23. Ra1 {[%clk 0:02:06]}  Rda8 {[%clk 0:01:45]} 24. Rxa5 {[%clk 0:02:06]}  Rxa5 {[%clk 0:01:41]} 25. Nxd4 {[%clk 0:02:06]} 1-0